bitfinex/quotes_BTCUSD_20230113
["timestamp","ask_amount","ask_price","bid_price","bid_amount"]
[1673641992458,1.33577407,19346.0,19345.0,0.101]
[1673641992704,1.33577407,19346.0,19345.0,0.25569581]
[1673641992946,1.56930807,19346.0,19345.0,0.25569581]
[1673641993181,1.33577407,19346.0,19345.0,0.25569581]
[1673641993495,1.56930807,19346.0,19345.0,0.25569581]
[1673641993739,1.33577407,19346.0,19345.0,0.25569581]
[1673641993997,1.56930807,19346.0,19345.0,0.25561466]
[1673641994252,1.56930807,19346.0,19345.0,0.10091885]
[1673641994463,1.56930807,19346.0,19345.0,0.25561466]
[1673641994704,1.33577407,19346.0,19345.0,0.10091885]
[1673641994929,1.56930807,19346.0,19345.0,0.10091885]
[1673641995675,1.86930807,19346.0,19345.0,0.10091885]
[1673641995921,1.56930807,19346.0,19345.0,0.10091885]
[1673641997140,2.69971355,19346.0,19345.0,0.10091885]
[1673641997380,2.48940861,19346.0,19345.0,0.10091885]
[1673641997884,2.80461803,19346.0,19345.0,0.10091885]
[1673641998122,1.268354,19346.0,19345.0,0.10091885]
[1673641998355,1.03482,19346.0,19345.0,0.10091885]
[1673642003855,1.32341853,19346.0,19345.0,0.10091885]
[1673642004095,1.62341853,19346.0,19345.0,0.10091885]
[1673642004324,1.85695253,19346.0,19345.0,0.10091885]
[1673642004822,1.62341853,19346.0,19345.0,0.10091885]
[1673642005320,1.32341853,19346.0,19345.0,0.10091885]
[1673642006793,1.62341853,19346.0,19345.0,0.10091885]
[1673642007026,1.85695253,19346.0,19345.0,0.10091885]
[1673642007263,1.62341853,19346.0,19345.0,0.10091885]
[1673642009266,1.84744798,19346.0,19345.0,0.10091885]
[1673642009741,2.08098198,19346.0,19345.0,0.10091885]
[1673642010215,1.55884945,19346.0,19345.0,0.10091885]
[1673642010471,2.40698545,19346.0,19345.0,0.10091885]
[1673642011508,2.72478193,19346.0,19345.0,0.10091885]
[1673642011761,2.40698545,19346.0,19345.0,0.10091885]
[1673642011985,2.69871241,19346.0,19345.0,0.10091885]
[1673642012200,2.40698545,19346.0,19345.0,0.10091885]
[1673642012703,2.70648504,19346.0,19345.0,0.10091885]
[1673642012953,2.40698545,19346.0,19345.0,0.10091885]
[1673642013447,2.52234285,19346.0,19345.0,0.10091885]
[1673642013688,2.19960885,19346.0,19345.0,0.10091885]
[1673642014435,2.43314285,19346.0,19345.0,0.10091885]
[1673642014913,2.43314285,19346.0,19345.0,0.10085367]
[1673642015401,2.19960885,19346.0,19345.0,0.10085367]
[1673642015652,2.43314285,19346.0,19345.0,0.10085367]
[1673642015887,2.19960885,19346.0,19345.0,0.10085367]
[1673642016123,2.43314285,19346.0,19345.0,0.10085367]
[1673642016610,3.45875794,19346.0,19345.0,0.10085367]
[1673642016852,3.46725794,19346.0,19345.0,0.10085367]
[1673642017096,3.23372394,19346.0,19345.0,0.10085367]
[1673642017327,3.46725794,19346.0,19345.0,0.10085367]
[1673642017625,2.43314285,19346.0,19345.0,0.10085367]
[1673642017864,1.61624085,19346.0,19345.0,0.10085367]
[1673642018129,1.38270685,19346.0,19345.0,0.10085367]
[1673642018383,1.38270685,19346.0,19345.0,0.48759406]
[1673642018384,2.41677515,19346.0,19345.0,0.48759406]
[1673642018617,2.41677515,19346.0,19345.0,0.25554948]
[1673642019638,2.71677515,19346.0,19345.0,0.25554948]
[1673642020141,2.41677515,19346.0,19345.0,0.25554948]
[1673642020387,2.71677515,19346.0,19345.0,0.25554948]
[1673642020645,2.65030915,19346.0,19345.0,0.25554948]
[1673642020885,2.41677515,19346.0,19345.0,0.25554948]
[1673642021375,0.34038685,19346.0,19345.0,0.64174996]
[1673642021656,0.34038685,19346.0,19345.0,0.33289825]
[1673642021657,0.001,19346.0,19345.0,0.33289825]
[1673642021897,0.001,19346.0,19345.0,0.64174996]
[1673642023378,0.001,19346.0,19345.0,1.67560796]
[1673642023626,0.001,19346.0,19345.0,1.82959532]
[1673642024377,0.001,19346.0,19345.0,1.52074361]
[1673642026120,0.001,19346.0,19345.0,1.52062846]
[1673642027866,0.002,19346.0,19345.0,1.52062846]
[1673642028126,0.002,19346.0,19345.0,2.04809964]
[1673642028628,0.002,19346.0,19345.0,1.9817017]
[1673642029118,0.002,19346.0,19345.0,2.0817017]
[1673642029367,0.002,19346.0,19345.0,1.9817017]
[1673642029874,0.002,19346.0,19345.0,2.0817017]
[1673642030148,0.002,19346.0,19345.0,2.5986307]
[1673642030398,0.002,19346.0,19345.0,2.16005952]
[1673642030648,0.00137961,19349.0,19345.0,2.16005952]
[1673642030649,0.00137961,19349.0,19345.0,2.82371596]
[1673642030895,0.00137961,19349.0,19348.0,0.38712078]
[1673642031148,0.00137961,19349.0,19348.0,2.25724678]
[1673642031405,0.00137961,19349.0,19348.0,2.35588244]
[1673642032172,0.00237961,19349.0,19348.0,2.35588244]
[1673642032419,0.00237961,19349.0,19348.0,2.62328244]
[1673642032672,0.00237961,19349.0,19348.0,3.14013144]
[1673642032915,0.00137961,19349.0,19348.0,3.60467637]
[1673642033162,0.00650157,19350.0,19348.0,3.14013144]
[1673642033407,0.00650157,19350.0,19349.0,1.22765571]
[1673642033651,0.00650157,19350.0,19349.0,2.58085671]
[1673642034355,0.00650157,19350.0,19349.0,2.88123287]
[1673642034586,0.00650157,19350.0,19349.0,2.70449103]
[1673642034841,0.00650157,19350.0,19349.0,3.32924747]
[1673642035075,0.00650157,19350.0,19349.0,2.88123287]
[1673642035322,0.00650157,19350.0,19349.0,2.39547643]
[1673642035833,0.00650157,19350.0,19349.0,2.88123287]
[1673642036064,0.00650157,19350.0,19349.0,2.31421711]
[1673642036316,0.00650157,19350.0,19349.0,2.31390712]
[1673642036602,0.00650157,19350.0,19349.0,2.45290712]
[1673642036858,0.00650157,19350.0,19349.0,2.06695744]
[1673642037639,0.00650157,19350.0,19349.0,2.15615744]
[1673642037889,0.00650157,19350.0,19349.0,2.54210004]
[1673642038147,0.00650157,19350.0,19349.0,3.06939254]
[1673642038621,0.00650157,19350.0,19349.0,2.36509339]
[1673642038839,0.00650157,19350.0,19349.0,2.88191539]
[1673642039095,0.00650157,19350.0,19349.0,3.38500281]
[1673642039352,0.00650157,19350.0,19349.0,3.09152192]
[1673642039601,0.00650157,19350.0,19349.0,3.07608304]
[1673642039855,0.00650157,19350.0,19349.0,3.23052192]
[1673642040113,0.00650157,19350.0,19349.0,2.93706627]
[1673642040610,0.00650157,19350.0,19349.0,3.07606627]
[1673642040859,0.00650157,19350.0,19349.0,2.70560456]
[1673642041107,0.00650157,19350.0,19349.0,3.07606627]
[1673642041598,0.00650157,19350.0,19349.0,2.93706627]
[1673642042098,0.00650157,19350.0,19349.0,2.5884345]
[1673642042345,0.00650157,19350.0,19349.0,2.62307944]
[1673642042852,0.00650157,19350.0,19349.0,3.38707871]
[1673642043097,0.00639607,19351.0,19350.0,0.1242]
[1673642043352,0.00612531,19354.0,19351.0,0.1]
[1673642043608,0.00612531,19354.0,19353.0,0.75068994]
[1673642043854,0.00612531,19354.0,19353.0,1.39001571]
[1673642044105,0.00612531,19354.0,19353.0,3.19738725]
[1673642044359,0.00720729,19357.0,19354.0,0.1]
[1673642044608,0.00720729,19357.0,19355.0,1.728186]
[1673642044861,0.00720729,19357.0,19355.0,2.65753642]
[1673642045104,0.00720729,19357.0,19355.0,2.81153537]
[1673642045358,0.00720729,19357.0,19355.0,2.65753642]
[1673642045578,0.00720729,19357.0,19355.0,2.664288]
[1673642045821,0.00720729,19357.0,19355.0,3.36461101]
[1673642046067,0.00720729,19357.0,19355.0,3.36337419]
[1673642046552,0.00720729,19357.0,19355.0,3.50237419]
[1673642046807,0.00720729,19357.0,19355.0,3.50252578]
[1673642047307,0.00720729,19357.0,19355.0,2.79666378]
[1673642048521,0.00720729,19357.0,19355.0,2.65766378]
[1673642048769,0.00720729,19357.0,19355.0,2.79666378]
[1673642053512,0.00720729,19357.0,19355.0,2.09757759]
[1673642053763,0.00720729,19357.0,19355.0,3.28686673]
[1673642054006,0.00720729,19357.0,19355.0,3.28663034]
[1673642054491,0.00720729,19357.0,19355.0,2.7125739]
[1673642054745,0.00720729,19357.0,19355.0,2.5735739]
[1673642055220,0.00720729,19357.0,19355.0,3.05933034]
[1673642055472,0.00720729,19357.0,19355.0,2.5735739]
[1673642055753,0.00720729,19357.0,19355.0,3.35015377]
[1673642056005,0.00720729,19357.0,19355.0,2.5735739]
[1673642056258,0.00720729,19357.0,19355.0,2.7125739]
[1673642057013,0.00720729,19357.0,19355.0,3.27027716]
[1673642057515,0.00720729,19357.0,19355.0,2.65489287]
[1673642057764,0.27967186,19357.0,19355.0,2.56589287]
[1673642059507,0.00720729,19357.0,19355.0,2.56589287]
[1673642059978,0.00720729,19357.0,19355.0,2.09738961]
[1673642060454,0.00720729,19357.0,19355.0,2.18648961]
[1673642060692,0.00720729,19357.0,19355.0,2.67224605]
[1673642061181,0.00720729,19357.0,19355.0,2.67239764]
[1673642061410,0.00720729,19357.0,19355.0,2.1866412]
[1673642063733,0.00720729,19357.0,19355.0,2.79706642]
[1673642064730,0.00720729,19357.0,19355.0,2.79691483]
[1673642064731,0.29690495,19357.0,19355.0,2.79691483]
[1673642065205,0.00720729,19357.0,19355.0,2.79691483]
[1673642065942,0.00720729,19357.0,19355.0,2.73965088]
[1673642066215,0.00720729,19357.0,19355.0,2.18648961]
[1673642066452,0.00720729,19357.0,19355.0,2.75980636]
[1673642067192,0.00720729,19357.0,19355.0,2.67060636]
[1673642067434,0.00720729,19357.0,19355.0,2.09728961]
[1673642068466,0.00720729,19357.0,19355.0,3.85877135]
[1673642068697,0.00720729,19357.0,19355.0,4.01326286]
[1673642068933,0.00720729,19357.0,19355.0,4.23149869]
[1673642069442,0.00720729,19357.0,19356.0,0.1]
[1673642069730,0.00720729,19357.0,19356.0,4.32389717]
[1673642069953,0.00786985,19359.0,19356.0,4.63280888]
[1673642070187,0.00786985,19359.0,19358.0,1.21898816]
[1673642070445,0.00786985,19359.0,19358.0,5.01037256]
[1673642070932,7.65106867,19361.0,19359.0,0.1]
[1673642071171,7.65106867,19361.0,19360.0,4.69231403]
[1673642071403,7.65106867,19361.0,19360.0,4.70310332]
[1673642071637,7.65106867,19361.0,19360.0,3.69111603]
[1673642071874,7.65106867,19361.0,19360.0,3.12842131]
[1673642072113,7.65106867,19361.0,19360.0,3.28246031]
[1673642072609,7.65106867,19361.0,19360.0,3.77518042]
[1673642072850,7.65106867,19361.0,19360.0,4.52833578]
[1673642073096,7.65106867,19361.0,19360.0,4.10404214]
[1673642073328,7.65106867,19361.0,19360.0,4.48927771]
[1673642073605,7.65106867,19361.0,19360.0,3.86452127]
[1673642073836,7.65106867,19361.0,19360.0,4.48827771]
[1673642074086,7.65106867,19361.0,19360.0,4.35027771]
[1673642074328,7.65106867,19361.0,19360.0,4.00232149]
[1673642074881,7.65106867,19361.0,19360.0,4.55779909]
[1673642075131,7.65106867,19361.0,19360.0,4.40379426]
[1673642075615,7.65106867,19361.0,19360.0,4.24978466]
[1673642076097,7.65106867,19361.0,19360.0,4.16058466]
[1673642076337,7.65106867,19361.0,19360.0,4.90459433]
[1673642076577,7.65106867,19361.0,19360.0,4.57285426]
[1673642077055,7.65106867,19361.0,19360.0,5.05437233]
[1673642077306,7.65106867,19361.0,19360.0,4.26058149]
[1673642077545,7.65106867,19361.0,19360.0,4.56859763]
[1673642077793,7.65106867,19361.0,19360.0,4.26058149]
[1673642078313,7.65106867,19361.0,19360.0,4.26054531]
[1673642078784,7.65106867,19361.0,19360.0,4.76160214]
[1673642079023,6.39482278,19361.0,19360.0,5.22434162]
[1673642079276,5.38066478,19361.0,19360.0,5.22370219]
[1673642079505,5.38066478,19361.0,19360.0,4.76175369]
[1673642079506,3.86719978,19361.0,19360.0,4.76175369]
[1673642079765,3.02960078,19361.0,19360.0,4.76175369]
[1673642080010,1.76003977,19361.0,19360.0,4.62375369]
[1673642080246,0.51647075,19361.0,19360.0,5.44480071]
[1673642080503,0.00927693,19362.0,19361.0,0.1]
[1673642080768,0.00927693,19362.0,19361.0,3.1911005]
[1673642081054,0.00927693,19362.0,19361.0,3.5104215]
[1673642081312,0.00612656,19365.0,19361.0,4.3377215]
[1673642081547,0.00612656,19365.0,19364.0,1.12892976]
[1673642081804,0.00612656,19365.0,19364.0,4.84486324]
[1673642082304,0.00612656,19365.0,19364.0,4.53666416]
[1673642082577,0.00612656,19365.0,19364.0,4.47140789]
[1673642083073,0.00612656,19365.0,19364.0,4.62553446]
[1673642083304,0.00612656,19365.0,19364.0,4.24062348]
[1673642083562,0.00612656,19365.0,19364.0,4.61040156]
[1673642083807,0.00612656,19365.0,19364.0,4.24062348]
[1673642084048,0.00612656,19365.0,19364.0,4.60939015]
[1673642084281,0.00612656,19365.0,19364.0,4.37862348]
[1673642084520,0.00612656,19365.0,19364.0,4.60925688]
[1673642085299,0.00612656,19365.0,19364.0,4.76298269]
[1673642085550,0.01027069,19367.0,19365.0,0.1]
[1673642085781,0.01027069,19367.0,19366.0,3.99695166]
[1673642086046,0.01027069,19367.0,19366.0,4.31614711]
[1673642086274,0.01027069,19367.0,19366.0,4.76984245]
[1673642086506,0.01027069,19367.0,19366.0,4.76947865]
[1673642086998,0.01027069,19367.0,19366.0,4.36817865]
[1673642087246,0.01027069,19367.0,19366.0,4.50617865]
[1673642087490,0.01027069,19367.0,19366.0,4.28155714]
[1673642087732,0.01027069,19367.0,19366.0,4.28055714]
[1673642087964,0.01027069,19367.0,19366.0,4.14255714]
[1673642088476,0.01027069,19367.0,19366.0,3.68721036]
[1673642089017,0.01027069,19367.0,19366.0,3.1388287]
[1673642089253,0.01027069,19367.0,19366.0,3.0489287]
[1673642089510,0.01027069,19367.0,19366.0,3.55367548]
[1673642090011,0.01027069,19367.0,19366.0,3.81185548]
[1673642091531,0.01027069,19367.0,19366.0,4.35574266]
[1673642091792,0.22057563,19367.0,19366.0,3.06658318]
[1673642092042,0.01027069,19367.0,19366.0,2.55021518]
[1673642092789,0.01027069,19367.0,19366.0,2.41221518]
[1673642093032,0.01127069,19367.0,19366.0,1.868328]
[1673642093279,0.53142456,19367.0,19366.0,1.868328]
[1673642093537,0.53242456,19367.0,19366.0,0.655368]
[1673642095273,0.53242456,19367.0,19366.0,0.139]
[1673642098457,0.53242456,19367.0,19366.0,0.655368]
[1673642099195,0.53242456,19367.0,19366.0,1.171736]
[1673642101834,0.53242456,19367.0,19366.0,1.17116]
[1673642102321,0.01127069,19367.0,19366.0,1.17116]
[1673642102566,0.01127069,19367.0,19366.0,1.490383]
[1673642102830,0.01127069,19367.0,19366.0,2.04920811]
[1673642103076,0.01127069,19367.0,19366.0,3.03660548]
[1673642103586,0.01127069,19367.0,19366.0,3.57393141]
[1673642103832,0.01127069,19367.0,19366.0,4.02781648]
[1673642104085,0.01127069,19367.0,19366.0,3.72077245]
[1673642105333,0.01027069,19367.0,19366.0,3.19930648]
[1673642105600,0.01027069,19367.0,19366.0,3.79919965]
[1673642106353,0.01027069,19371.0,19366.0,3.97739965]
[1673642106600,0.01027069,19371.0,19368.0,0.39655305]
[1673642106601,0.001,19369.0,19368.0,0.39655305]
[1673642106852,0.001,19369.0,19368.0,4.04264254]
[1673642107100,0.001,19369.0,19368.0,3.95364254]
[1673642107360,0.001,19369.0,19368.0,4.10737425]
[1673642107615,0.001,19369.0,19368.0,3.7998212]
[1673642108121,0.001,19369.0,19368.0,3.9388212]
[1673642108623,0.001,19369.0,19368.0,4.2388212]
[1673642109132,0.001,19369.0,19368.0,3.94312248]
[1673642109385,0.001,19369.0,19368.0,4.40501565]
[1673642110652,0.001,19369.0,19368.0,4.49521565]
[1673642111112,0.001,19369.0,19368.0,4.03332248]
[1673642112100,0.001,19369.0,19368.0,4.49514541]
[1673642113108,0.001,19369.0,19368.0,4.03332248]
[1673642114583,0.01027069,19371.0,19370.0,0.001]
[1673642114830,0.01027069,19371.0,19370.0,2.7989807]
[1673642115104,0.01027069,19371.0,19370.0,3.29604498]
[1673642115355,0.01027069,19371.0,19370.0,3.60378955]
[1673642115608,0.01027069,19371.0,19370.0,3.8981105]
[1673642115869,0.01027069,19371.0,19370.0,4.1288759]
[1673642116107,0.01027069,19371.0,19370.0,4.28273078]
[1673642116356,0.01027069,19371.0,19370.0,3.43504498]
[1673642116605,0.01027069,19371.0,19370.0,3.0494247]
[1673642116856,0.01027069,19371.0,19370.0,3.55417148]
[1673642117369,0.01027069,19371.0,19370.0,4.20107148]
[1673642117630,0.01027069,19373.0,19370.0,5.1508185]
[1673642117874,0.01027069,19373.0,19372.0,0.46139596]
[1673642118123,0.01027069,19373.0,19372.0,4.17631544]
[1673642119176,0.01027069,19373.0,19372.0,4.31431544]
[1673642120431,0.01257642,19375.0,19373.0,0.1]
[1673642120679,0.01257642,19375.0,19374.0,4.08193462]
[1673642120945,0.01257642,19375.0,19374.0,4.15114648]
[1673642121215,0.01257642,19375.0,19374.0,4.2227477]
[1673642121445,0.01257642,19375.0,19374.0,4.60685605]
[1673642121733,0.01257642,19375.0,19374.0,3.97717483]
[1673642121973,0.01257642,19375.0,19374.0,4.87942746]
[1673642122215,0.01257642,19375.0,19374.0,4.35897548]
[1673642122492,0.01257642,19375.0,19374.0,4.05165915]
[1673642122689,0.01257642,19375.0,19374.0,4.02687365]
[1673642123430,0.01257642,19375.0,19374.0,3.88887365]
[1673642123682,0.01257642,19375.0,19374.0,4.02687365]
[1673642124177,0.01257642,19375.0,19374.0,3.7964705]
[1673642124665,0.01257642,19375.0,19374.0,3.94186648]
[1673642124898,0.01257642,19375.0,19374.0,4.03106648]
[1673642125406,0.01257642,19375.0,19374.0,3.89306648]
[1673642125882,0.01257642,19375.0,19374.0,4.11986648]
[1673642126393,0.01257642,19375.0,19374.0,4.58065162]
[1673642126637,0.01257642,19377.0,19375.0,0.1]
[1673642126892,0.01257642,19377.0,19376.0,3.62088748]
[1673642127146,0.01389404,19381.0,19376.0,4.23991548]
[1673642127392,0.01389404,19381.0,19380.0,0.25798]
[1673642127635,0.01389404,19381.0,19380.0,3.82534029]
[1673642127875,0.01389404,19381.0,19380.0,3.67190348]
[1673642128105,0.01389404,19381.0,19380.0,3.76110348]
[1673642128345,0.01389404,19381.0,19380.0,3.90010348]
[1673642129105,0.01389404,19381.0,19380.0,4.35354029]
[1673642129365,0.01389404,19381.0,19380.0,3.91454029]
[1673642129605,0.01389404,19381.0,19380.0,4.05254029]
[1673642129863,0.01389404,19381.0,19380.0,4.19910348]
[1673642130154,0.01389404,19381.0,19380.0,4.79981957]
[1673642130383,0.01389404,19381.0,19380.0,4.19910348]
[1673642131121,0.01389404,19381.0,19380.0,4.20010348]
[1673642131845,0.01389404,19381.0,19380.0,4.44194029]
[1673642132088,0.01389404,19381.0,19380.0,4.15050348]
[1673642132338,0.01389404,19381.0,19380.0,4.28850348]
[1673642132592,0.01389404,19381.0,19380.0,4.44194029]
[1673642132835,0.01389404,19381.0,19380.0,4.67209551]
[1673642133089,0.01389404,19381.0,19380.0,4.53409551]
[1673642133329,4e-08,19381.0,19380.0,4.62159551]
[1673642133560,0.93629404,19387.0,19381.0,0.1]
[1673642133798,0.01389404,19387.0,19385.0,0.0889]
[1673642134054,0.01389404,19387.0,19386.0,2.043846]
[1673642134299,0.01389404,19387.0,19386.0,2.5700787]
[1673642134793,0.00389404,19387.0,19386.0,2.5700787]
[1673642135321,0.00389404,19387.0,19386.0,2.89732548]
[1673642135560,0.00389404,19387.0,19386.0,3.21472548]
[1673642135805,0.00389404,19387.0,19386.0,3.07572548]
[1673642136045,0.00389404,19387.0,19386.0,3.21472548]
[1673642136287,0.00389404,19387.0,19386.0,3.07572548]
[1673642136530,0.16654002,19390.0,19386.0,3.71146575]
[1673642136774,0.16654002,19390.0,19387.0,0.5262327]
[1673642136775,0.354137,19389.0,19387.0,0.5262327]
[1673642137022,0.35127331,19388.0,19387.0,1.0420357]
[1673642137270,0.35127331,19388.0,19387.0,1.8766547]
[1673642137504,0.36312975,19390.0,19387.0,2.3924637]
[1673642137819,0.34884528,19389.0,19387.0,2.0736537]
[1673642138056,0.34884528,19389.0,19388.0,0.318792]
[1673642138313,0.34884528,19389.0,19388.0,1.350356]
[1673642138814,0.1,19391.0,19388.0,1.031564]
[1673642139080,0.1,19391.0,19387.0,0.654809]
[1673642139081,0.0889,19390.0,19387.0,0.654809]
[1673642139332,0.333534,19389.0,19388.0,0.139]
[1673642139592,0.84929,19389.0,19386.0,0.515817]
[1673642139818,1.10010204,19390.0,19388.0,0.139]
[1673642140061,1.01120204,19390.0,19386.0,1.04318366]
[1673642140289,0.233534,19389.0,19387.0,0.515807]
[1673642140532,1.22150698,19390.0,19387.0,0.515807]
[1673642140782,1.01120204,19390.0,19387.0,0.515807]
[1673642141010,0.233534,19389.0,19387.0,0.515807]
[1673642141262,1.01120204,19390.0,19387.0,0.654807]
[1673642141508,1.131491,19390.0,19386.0,0.515818]
[1673642141751,0.64698554,19389.0,19387.0,0.14]
[1673642141990,0.1,19388.0,19385.0,0.515838]
[1673642142238,0.233534,19387.0,19384.0,0.516057]
[1673642142477,0.21030494,19387.0,19384.0,0.516057]
[1673642142727,0.21030494,19387.0,19384.0,1.031946]
[1673642142957,1.220797,19388.0,19384.0,1.67960247]
[1673642143202,1.43110194,19388.0,19384.0,1.67960247]
[1673642143681,0.604999,19388.0,19384.0,1.67941247]
[1673642143925,1.53797736,19389.0,19385.0,0.70539506]
[1673642144205,1.53797736,19389.0,19385.0,1.22123806]
[1673642144206,1.02220436,19389.0,19385.0,1.22123806]
[1673642144716,0.39859929,19388.0,19385.0,1.22123806]
[1673642144967,0.39859929,19388.0,19385.0,1.87709506]
[1673642145205,0.39859929,19388.0,19385.0,1.73709506]
[1673642145503,0.39859929,19388.0,19385.0,1.87809506]
[1673642145739,0.39859929,19388.0,19385.0,1.73709506]
[1673642146015,0.1,19387.0,19385.0,1.0317]
[1673642146764,0.49859929,19388.0,19385.0,1.1707]
[1673642146995,0.35900668,19387.0,19385.0,1.0317]
[1673642147231,0.35900668,19387.0,19385.0,1.1707]
[1673642147471,0.35900668,19387.0,19385.0,1.0317]
[1673642147722,0.35900668,19387.0,19385.0,0.654843]
[1673642147953,0.35900668,19387.0,19385.0,0.515843]
[1673642148203,0.35900668,19387.0,19385.0,0.654843]
[1673642148444,0.35900668,19387.0,19385.0,0.515843]
[1673642148678,0.35900668,19387.0,19385.0,0.654843]
[1673642149194,0.35900668,19387.0,19385.0,0.139]
[1673642149195,0.21030494,19387.0,19385.0,0.139]
[1673642149436,0.528834,19386.0,19385.0,0.139]
[1673642149689,1.89527655,19386.0,19385.0,0.139]
[1673642149927,1.99527655,19386.0,19383.0,0.57277895]
[1673642150172,0.52397055,19386.0,19385.0,0.139]
[1673642150403,0.52397055,19386.0,19383.0,1.60459295]
[1673642150719,0.52397055,19386.0,19385.0,0.139]
[1673642150720,0.33477055,19386.0,19385.0,0.139]
[1673642150962,0.33477055,19386.0,19384.0,1.01663036]
[1673642151203,0.33477055,19386.0,19385.0,0.139]
[1673642151446,0.33477055,19386.0,19385.0,0.515862]
[1673642151705,0.3366518,19388.0,19385.0,2.06569631]
[1673642151938,0.3366518,19388.0,19386.0,0.318836]
[1673642152196,0.3366518,19388.0,19386.0,1.03165]
[1673642153185,0.3366518,19388.0,19386.0,1.63045194]
[1673642153425,0.3366518,19388.0,19386.0,1.76945194]
[1673642154181,0.35930207,19391.0,19386.0,2.27662996]
[1673642154416,0.35930207,19391.0,19387.0,1.32434694]
[1673642154687,0.35930207,19391.0,19388.0,1.547333]
[1673642154953,0.35930207,19391.0,19389.0,0.89479796]
[1673642155199,0.35930207,19391.0,19390.0,0.515729]
[1673642155669,0.35930207,19391.0,19390.0,1.031458]
[1673642156666,0.35930207,19391.0,19390.0,1.171458]
[1673642157422,0.10567707,19393.0,19390.0,1.171458]
[1673642157683,0.10567707,19393.0,19391.0,0.318736]
[1673642157931,0.32001838,19392.0,19390.0,1.171458]
[1673642158174,0.29890494,19392.0,19390.0,0.14]
[1673642158421,0.29890494,19392.0,19388.0,0.515782]
[1673642158422,0.1,19391.0,19388.0,0.515782]
[1673642158666,0.72614353,19390.0,19386.0,0.515814]
[1673642158925,0.53303894,19389.0,19386.0,0.515814]
[1673642159190,0.0889,19387.0,19384.0,1.21273524]
[1673642159432,0.63303894,19388.0,19384.0,0.69684924]
[1673642159433,0.29920494,19386.0,19384.0,0.69684924]
[1673642159930,0.29920494,19386.0,19382.0,0.66888805]
[1673642160178,0.71273024,19386.0,19383.0,0.63047202]
[1673642160424,0.5024253,19386.0,19383.0,0.63047202]
[1673642161439,0.5024253,19386.0,19383.0,0.76947202]
[1673642161686,0.5034253,19386.0,19383.0,1.28538402]
[1673642162185,0.5034253,19386.0,19383.0,1.43734507]
[1673642162438,0.5034253,19386.0,19383.0,1.28438402]
[1673642162924,0.3639503,19385.0,19383.0,1.28438402]
[1673642163676,0.36383782,19385.0,19383.0,1.28438402]
[1673642163938,0.0899,19386.0,19384.0,0.65132395]
[1673642163939,0.0889,19386.0,19384.0,0.65132395]
[1673642164191,0.1892,19388.0,19384.0,1.03373221]
[1673642164192,0.001,19385.0,19384.0,1.03373221]
[1673642164448,0.001,19385.0,19384.0,2.53826679]
[1673642164691,0.001,19385.0,19384.0,1.21770374]
[1673642164958,0.31242364,19386.0,19384.0,0.98825653]
[1673642165213,0.31342364,19386.0,19384.0,1.33564153]
[1673642165453,0.31242364,19386.0,19384.0,1.42608874]
[1673642165697,0.001,19385.0,19384.0,1.56508874]
[1673642166209,0.001,19385.0,19384.0,2.23432784]
[1673642166478,0.001,19385.0,19384.0,2.55319684]
[1673642166732,0.4389601,19388.0,19385.0,0.63327499]
[1673642166979,0.001,19386.0,19385.0,2.04909554]
[1673642167247,0.001,19386.0,19385.0,1.89545092]
[1673642167494,0.001,19386.0,19385.0,2.20232455]
[1673642167737,0.3506601,19388.0,19385.0,2.52117255]
[1673642167982,0.3506601,19388.0,19386.0,0.38414776]
[1673642168253,0.3506601,19388.0,19386.0,1.41580276]
[1673642169257,0.0892,19389.0,19386.0,1.41580276]
[1673642169504,0.46626946,19392.0,19387.0,0.15368083]
[1673642169505,0.0886,19392.0,19387.0,0.15368083]
[1673642169782,0.0886,19392.0,19388.0,1.73442323]
[1673642169783,0.3470178,19391.0,19388.0,1.73442323]
[1673642170023,0.3470178,19391.0,19389.0,0.1536213]
[1673642170276,0.3470178,19391.0,19389.0,1.72803679]
[1673642170781,0.0886,19392.0,19390.0,0.57788959]
[1673642170782,0.003,19392.0,19390.0,0.57788959]
[1673642171031,0.003,19392.0,19391.0,1.50374291]
[1673642171032,0.33234478,19392.0,19391.0,1.50374291]
[1673642171530,0.33234478,19392.0,19391.0,1.73420984]
[1673642171774,0.33234478,19392.0,19391.0,1.50374291]
[1673642172769,0.33234478,19392.0,19391.0,1.64474291]
[1673642173016,0.01707707,19393.0,19391.0,1.50374291]
[1673642173265,0.01707707,19393.0,19391.0,1.32500391]
[1673642173513,0.01707707,19393.0,19392.0,0.318715]
[1673642173774,0.01707707,19393.0,19392.0,1.031352]
[1673642174269,0.01707707,19393.0,19392.0,1.350066]
[1673642174564,0.34280338,19392.0,19391.0,0.81030091]
[1673642174822,0.34280338,19392.0,19391.0,0.141]
[1673642175315,0.34280338,19392.0,19390.0,0.515724]
[1673642175560,0.34280338,19392.0,19390.0,1.031453]
[1673642176042,0.34280338,19392.0,19391.0,0.14]
[1673642176043,0.53200338,19392.0,19391.0,0.14]
[1673642176293,0.2781,19392.0,19391.0,0.14]
[1673642176539,1.32731,19392.0,19391.0,0.14]
[1673642176787,0.1,19391.0,19388.0,0.66935991]
[1673642177037,0.31030494,19391.0,19388.0,0.515762]
[1673642177283,0.0892,19390.0,19388.0,0.515762]
[1673642177550,0.0886,19389.0,19387.0,0.38425484]
[1673642177806,0.0886,19389.0,19387.0,0.00019]
[1673642177807,0.510634,19388.0,19387.0,0.00019]
[1673642178062,0.510634,19388.0,19385.0,0.69093847]
[1673642178063,1.53672094,19388.0,19385.0,0.69093847]
[1673642178322,0.39950494,19387.0,19385.0,0.15359791]
[1673642178569,0.233534,19386.0,19385.0,0.15359791]
[1673642178818,0.1185,19386.0,19385.0,0.15359791]
[1673642179096,0.1794,19386.0,19385.0,0.15359791]
[1673642179343,0.001,19386.0,19385.0,1.19002412]
[1673642179591,0.001,19386.0,19385.0,1.04902412]
[1673642179840,0.001,19386.0,19385.0,0.81855719]
[1673642180091,0.001,19386.0,19385.0,1.34214923]
[1673642180587,0.4289237,19387.0,19385.0,1.18885751]
[1673642180836,0.4289237,19387.0,19386.0,0.38383803]
[1673642181089,0.4289237,19387.0,19386.0,0.15353771]
[1673642181573,0.4289237,19387.0,19386.0,0.38383803]
[1673642181823,0.4289237,19387.0,19386.0,0.15353771]
[1673642182073,0.6624577,19387.0,19386.0,0.38383803]
[1673642182326,0.6624577,19387.0,19386.0,0.094]
[1673642182327,0.0892,19387.0,19386.0,0.094]
[1673642182582,1.35411469,19387.0,19386.0,0.094]
[1673642182831,0.65200569,19387.0,19386.0,0.094]
[1673642183074,0.65200569,19387.0,19386.0,0.24753771]
[1673642183321,0.41847169,19387.0,19386.0,0.24753771]
[1673642183567,1.62818969,19387.0,19386.0,0.094]
[1673642183812,1.96172369,19387.0,19386.0,0.094]